bitfinex-derivatives/quotes_SOLF0:USTF0_20250127
["timestamp","ask_amount","ask_price","bid_price","bid_amount"]
[1737956424523,0.02896504,231.18,231.13,0.02801337]
[1737956424914,4.3285,231.16,231.0,27.62244315]
[1737956425120,27.62244315,231.25,231.13,0.0321702]
[1737956425322,0.02769078,231.1,231.06,4.3301]
[1737956425521,0.02769078,231.1,231.0,27.62244315]
[1737956425722,27.62244315,231.21,231.06,0.03084527]
[1737956426020,27.62244315,231.17,230.96,27.62244315]
[1737956426225,2.78412526,231.16,231.11,0.03116486]
[1737956426418,2.7553,231.16,230.96,27.62244315]
[1737956426621,2.7553,231.16,230.91,27.83214315]
[1737956426817,4.3308,231.03,230.91,27.83214315]
[1737956427018,2.7553,231.16,230.91,27.83214315]
[1737956427219,4.3299,231.08,231.01,4.3311]
[1737956427627,0.03269896,231.07,231.01,4.3311]
[1737956427825,0.03269896,231.07,230.91,27.83214315]
[1737956428527,0.03269896,231.07,230.94,97.99011609]
[1737956429032,4.3306,231.04,230.94,80.98]
[1737956429228,17.01011609,231.13,230.94,80.98]
[1737956429628,4.331,231.02,230.95,4.3321]
[1737956429828,17.01011609,231.13,230.94,80.98]
[1737956430226,0.02804002,231.01,230.94,80.98]
[1737956430425,17.01011609,231.13,230.94,80.98]
[1737956430929,0.02861674,231.06,230.94,80.98]
[1737956431626,0.02861674,231.06,230.97,17.01011609]
[1737956432128,17.01011609,231.29,231.05,17.01011609]
[1737956432333,2.6675,231.22,231.1,17.01011609]
[1737956432528,1.3092,231.22,231.1,17.01011609]
[1737956432834,1.3583,231.29,231.14,17.01011609]
[1737956433131,4.3267,231.25,231.17,4.328]
[1737956433335,0.0286042,231.24,231.19,0.03056454]
[1737956434126,4.3274,231.21,231.19,0.03056454]
[1737956435435,4.3271,231.23,231.19,0.03056454]
[1737956435627,0.0286042,231.24,231.19,0.03056454]
[1737956439638,0.0286042,231.24,231.19,27.64006263]
[1737956440038,0.0286042,231.24,231.19,0.03056454]
[1737956441332,4.3271,231.23,231.19,0.03056454]
[1737956441534,0.0286042,231.24,231.19,0.03056454]
[1737956441938,4.3275,231.21,231.19,0.03056454]
[1737956442138,0.0286042,231.24,231.19,0.03056454]
[1737956442737,4.3272,231.22,231.19,0.03056454]
[1737956443238,0.0286042,231.24,231.19,0.03056454]
[1737956443537,0.0286042,231.24,231.07,27.60949809]
[1737956443929,3.5,231.29,231.07,27.60949809]
[1737956444739,0.03084011,231.2,231.07,27.60949809]
[1737956444940,4.3282,231.17,231.1,4.3294]
[1737956445339,0.03084011,231.2,231.07,27.60949809]
[1737956445543,4.3286,231.15,231.09,4.3296]
[1737956445839,27.60949809,231.26,231.04,0.2386]
[1737956446039,0.03196035,231.14,231.1,27.60949809]
[1737956446242,1.307,231.25,231.1,27.60949809]
[1737956446440,1.307,231.25,231.14,27.60949809]
[1737956446642,1.307,231.25,231.01,27.60949809]
[1737956446643,27.60949809,231.24,231.01,27.60949809]
[1737956446843,4.3294,231.11,231.05,4.3304]
[1737956447540,0.03184353,231.1,231.06,0.03164633]
[1737956447737,4.36134353,231.1,231.06,0.03164633]
[1737956447940,0.03184353,231.1,231.06,0.03164633]
[1737956448335,4.33,231.07,231.06,0.03164633]
[1737956448742,0.03184353,231.1,230.92,27.60949809]
[1737956449039,1.3404,231.09,230.9,1.4167]
[1737956449643,1.3404,231.09,230.93,4.3326]
[1737956450040,0.03273339,231.03,230.9,1.4167]
[1737956450242,4.3313,231.01,230.94,4.3324]
[1737956450546,0.03273339,231.03,230.84,27.60949809]
[1737956450843,1.3379,231.06,230.84,28.93149809]
[1737956451044,0.0309633,230.96,230.84,28.93149809]
[1737956452542,0.0309633,230.96,230.84,4.3343]
[1737956452740,1.4232633,230.96,230.76,28.93149809]
[1737956452946,1.3923,230.96,230.76,28.93149809]
[1737956453143,0.0301941,230.88,230.76,28.93149809]
[1737956454544,0.0301941,230.88,230.76,1.322]
[1737956455855,0.0301941,230.88,230.78,17.03900572]
[1737956456447,0.0301941,230.88,230.76,1.322]
[1737956457064,0.0301941,230.88,230.83,4.3344]
[1737956457853,0.0301941,230.88,230.86,4.3338]
[1737956459256,0.0301941,230.88,230.77,17.03900572]
[1737956459451,0.0301941,230.88,230.72,17.03900572]
[1737956459657,1.3083,230.95,230.72,17.03900572]
[1737956460057,0.02853378,230.86,230.72,17.03900572]
[1737956460356,1.4011,230.94,230.72,17.03900572]
[1737956460552,0.0315007,230.81,230.8,4.3349]
[1737956460754,1.4011,230.94,230.77,17.03900572]
[1737956460955,1.4011,230.94,230.82,17.03900572]
[1737956461257,4.3328,230.93,230.78,18.34760572]
[1737956461859,0.02931825,230.88,230.83,0.02859641]
[1737956462560,1.3923,230.96,230.87,17.03900572]
[1737956463156,1.3923,230.96,230.82,17.03900572]
[1737956463553,4.3324,230.94,230.86,4.3339]
[1737956463762,0.02778072,230.91,230.87,0.02780891]
[1737956465864,1.4053,231.05,230.87,0.02780891]
[1737956466161,2.864,231.03,230.85,17.03900572]
[1737956466360,2.864,231.03,230.89,17.03900572]
[1737956467060,2.864,231.03,230.99,4.3313]
[1737956467265,17.03900572,231.14,230.94,0.03171067]
[1737956467465,0.03269085,231.03,230.93,17.03900572]
[1737956467666,0.03269085,231.03,231.02,0.03131204]
[1737956467862,0.03269085,231.03,230.88,17.03900572]
[1737956468166,1.4211,231.12,230.82,1.3597]
[1737956468167,3.5,231.02,230.82,1.3597]
[1737956468366,2.6617,231.01,230.82,1.3597]
[1737956468568,4.3327,230.93,230.85,4.3339]
[1737956468768,2.6617,231.01,230.82,1.3597]
[1737956468972,0.02772382,230.91,230.87,0.0293339]
[1737956469364,2.6617,231.01,230.8,17.03900572]
[1737956469571,0.02732836,230.91,230.87,0.02792852]
[1737956469874,2.6617,231.01,230.8,17.03900572]
[1737956470371,0.03201687,230.91,230.9,4.3331]
[1737956470871,0.02788993,230.93,230.9,4.3331]
[1737956471169,2.6617,231.01,230.85,17.03900572]
[1737956471366,0.03166645,230.94,230.89,0.03198865]
[1737956472070,4.3328,230.92,230.89,0.03198865]
[1737956472272,0.03166645,230.94,230.89,0.03198865]
[1737956472667,0.03166645,230.94,230.8,17.03900572]
[1737956472868,3.48,230.93,230.71,17.03900572]
[1737956473066,17.03900572,230.91,230.71,17.03900572]
[1737956473469,1.3746,230.9,230.71,17.03900572]
[1737956473865,0.02817526,230.83,230.78,0.03318717]
[1737956474471,4.3351,230.8,230.78,0.03318717]
[1737956474671,1.4068,230.82,230.78,0.03318717]
[1737956475270,0.02817526,230.83,230.78,0.03318717]
[1737956475772,0.02817526,230.83,230.78,4.36838717]
[1737956475970,0.02817526,230.83,230.78,0.03318717]
[1737956476372,4.3351,230.8,230.78,0.03318717]
[1737956476778,1.3718,230.82,230.78,0.03318717]
[1737956477678,1.3718,230.82,230.68,17.03900572]
[1737956477877,1.3718,230.82,230.63,17.03900572]
[1737956478170,4.3357,230.77,230.63,17.03900572]
[1737956478378,1.3718,230.82,230.63,17.03900572]
[1737956478974,0.03236105,230.75,230.7,4.3369]
[1737956479373,0.03236105,230.75,230.63,17.03900572]
[1737956479572,4.3372,230.69,230.58,17.03900572]
[1737956479868,3.48,230.81,230.58,17.03900572]
[1737956480071,0.03202876,230.66,230.58,17.03900572]
[1737956480272,1.3621,230.8,230.58,17.03900572]
[1737956480473,0.03203268,230.64,230.58,17.03900572]
[1737956480670,4.3366,230.72,230.58,17.03900572]
[1737956480979,0.02961588,230.63,230.58,17.03900572]
[1737956481278,0.02961588,230.63,230.62,4.3384]
[1737956481474,0.02961588,230.63,230.58,17.03900572]
[1737956481670,0.02961588,230.63,230.61,4.3386]
[1737956481976,17.03900572,230.79,230.58,17.03900572]
[1737956482176,17.03900572,230.79,230.64,4.338]
[1737956482177,4.3369,230.7,230.64,4.338]
[1737956482372,17.03900572,230.79,230.58,17.03900572]
[1737956482679,4.3383,230.63,230.57,4.3393]
[1737956482877,17.03900572,230.75,230.5,17.03900572]
[1737956483076,0.02750345,230.62,230.58,0.02746262]
[1737956483473,0.02786286,230.62,230.58,0.02937704]
[1737956485481,0.02786286,230.62,230.45,17.03900572]
[1737956485682,4.3396,230.56,230.49,4.3408]
[1737956485883,2.7158,230.64,230.42,180.41330245]
[1737956486176,4.3399,230.55,230.42,180.41330245]
[1737956486381,2.7158,230.64,230.4,17.03900572]
[1737956486581,0.02759997,230.52,230.4,17.03900572]
[1737956486884,0.02759997,230.52,230.5,4.3406]
[1737956487083,9.997e-05,230.52,230.5,4.3406]
[1737956489284,9.997e-05,230.52,230.49,0.02897219]
[1737956490587,9.997e-05,230.52,230.5,4.3406]
[1737956490884,9.997e-05,230.52,230.49,0.02897219]
[1737956491084,9.997e-05,230.52,230.34,415.79620449]
[1737956491483,3.54,230.55,230.35,1.3073]
[1737956491683,1.4294,230.54,230.35,1.3073]
[1737956492388,0.02808789,230.47,230.35,1.3073]
[1737956492786,0.02808789,230.47,230.4,4.3424]
[1737956494087,0.02808789,230.47,230.43,4.3419]
[1737956494288,1.4294,230.54,230.34,2.427]
[1737956494491,1.4294,230.54,230.38,17.03900572]
[1737956494688,4.3396,230.56,230.38,17.03900572]
[1737956495088,0.0284418,230.49,230.38,17.03900572]
[1737956495288,0.0284418,230.49,230.48,4.341]
[1737956497890,4.18e-05,230.49,230.48,4.341]
[1737956498593,4.9796,230.66,230.58,4.339]
[1737956498789,1.4196,230.66,230.49,1.0742]
[1737956498989,5.722,230.64,230.49,1.0742]
[1737956499190,1.3839,230.64,230.59,4.3389]
[1737956499392,1.4027,230.7,230.49,1.0742]
[1737956499695,0.02866974,230.62,230.57,0.0284381]
[1737956500092,1.3566,230.75,230.61,17.03900572]
[1737956500292,2.7361,230.82,230.69,4.337]
[1737956500796,17.03900572,230.8,230.65,4.3378]
[1737956500996,17.03900572,230.8,230.58,1.4159]
[1737956501196,4.3372,230.69,230.58,1.4159]
[1737956501696,4.3372,230.69,230.61,0.03323489]
[1737956501890,17.03900572,230.8,230.61,0.03323489]
[1737956501891,0.03126648,230.66,230.61,0.03323489]
[1737956502195,17.03900572,230.8,230.58,1.4159]
[1737956502396,4.3362,230.74,230.66,4.3375]
[1737956502593,17.03900572,230.8,230.58,1.4159]
[1737956502791,0.03253163,230.71,230.61,17.03900572]
[1737956502997,0.03253163,230.71,230.68,0.02776027]
[1737956504199,0.03253163,230.71,230.68,4.36506027]
[1737956504691,4.337,230.7,230.68,0.02776027]
[1737956504998,0.03253163,230.71,230.54,81.2]
[1737956504999,17.07153735,230.71,230.54,81.2]
[1737956505199,4.3392,230.58,230.54,81.2]
[1737956505691,17.03900572,230.62,230.44,2.512]
[1737956506095,0.03253758,230.55,230.51,0.02935127]
[1737956506290,4.3402,230.53,230.51,0.02935127]
[1737956507394,0.03253758,230.55,230.51,0.02935127]
[1737956507590,0.03253758,230.55,230.53,4.34]
[1737956507794,3.54,230.72,230.51,0.02935127]
[1737956507795,1.3425,230.69,230.51,0.02935127]
[1737956507991,17.03900572,230.64,230.39,17.03900572]
[1737956508498,4.3399,230.54,230.39,17.03900572]
[1737956508699,17.03900572,230.59,230.39,17.03900572]
[1737956508899,0.03032376,230.49,230.44,0.03113947]
[1737956509402,0.03152023,230.49,230.44,0.02857567]
[1737956509601,0.03152023,230.49,230.47,4.3412]
[1737956510903,0.03152023,230.49,230.45,4.3415]
[1737956511100,0.03152023,230.49,230.44,0.02857567]
[1737956511598,4.37242023,230.49,230.44,0.02857567]
[1737956511805,0.03152023,230.49,230.44,0.02857567]
[1737956512199,4.3424,230.41,230.34,4.3435]
[1737956512399,17.03900572,230.48,230.29,64.90288046]
[1737956512606,1.4304,230.47,230.29,64.90288046]
[1737956512794,1.4304,230.47,230.34,4.3436]
[1737956512795,4.3421,230.43,230.34,4.3436]
[1737956513100,1.4304,230.47,230.29,64.90288046]
[1737956513296,0.02748261,230.41,230.36,0.03128612]
[1737956515206,0.02748261,230.41,230.39,4.3427]
[1737956515503,8.261e-05,230.41,230.39,4.3427]
[1737956517005,1.385,230.57,230.39,17.03900572]
[1737956517401,1.385,230.57,230.38,1.1028]
[1737956517402,1.3981,230.56,230.38,1.1028]
[1737956517602,5.7377,230.56,230.38,1.1028]
[1737956517801,1.3981,230.56,230.38,1.1028]
[1737956518101,0.03222043,230.49,230.45,0.02901117]
[1737956518606,4.3384,230.62,230.5,4.3406]
[1737956518804,4.3384,230.62,230.45,0.02901117]
[1737956519101,4.3402,230.53,230.46,4.3413]
[1737956519308,17.03900572,230.55,230.38,1.1028]
[1737956519508,1.3435,230.52,230.38,1.1028]
[1737956519808,0.03226063,230.49,230.44,5.613e-05]
[1737956520002,17.03900572,230.46,230.44,5.613e-05]
[1737956520202,17.03900572,230.46,230.24,1.1025]
[1737956520506,4.3424,230.42,230.34,4.3436]
[1737956520705,4.3424,230.42,230.24,1.1731]
[1737956520907,0.02990548,230.4,230.36,0.03205464]
[1737956521206,17.03900572,230.46,230.32,4.3439]
[1737956521402,0.02764863,230.4,230.36,0.03141304]
[1737956522310,1.3297,230.53,230.38,17.03900572]
[1737956522497,4.3385,230.62,230.53,4.3399]
[1737956522701,17.03900572,230.72,230.48,17.03900572]
[1737956523102,8.3407,230.73,230.63,4.3381]
[1737956523307,4.0042,230.73,230.58,17.03900572]
[1737956523506,0.03137711,230.7,230.66,0.03046364]
[1737956523903,4.0042,230.73,230.54,17.03900572]
[1737956524105,0.03154234,230.7,230.66,0.0300906]
[1737956524610,0.03154234,230.7,230.66,0.02822437]
[1737956525213,0.03154234,230.7,230.53,81.24]
[1737956525509,1.4457,230.71,230.53,81.24]
[1737956525903,27.72033798,230.67,230.45,27.72033798]
[1737956526306,27.72033798,230.67,230.4,27.72033798]
[1737956526506,0.02921789,230.58,230.54,0.03131913]
[1737956526710,0.02921789,230.58,230.4,27.72033798]
[1737956526711,27.72033798,230.62,230.41,0.7973289]
[1737956527010,0.02994015,230.58,230.51,0.03116007]
[1737956527413,27.72033798,230.57,230.35,27.72033798]
[1737956527610,4.3401,230.53,230.4,4.3424]
[1737956527909,1.3288,230.56,230.35,27.72033798]
[1737956528508,0.03319223,230.48,230.43,0.02838827]
[1737956529217,0.03319223,230.48,230.44,4.3417]
[1737956529418,0.03319223,230.48,230.43,0.02838827]
[1737956529914,27.72033798,230.67,230.45,27.72033798]
[1737956530109,1.3994,230.66,230.45,27.72033798]
[1737956530309,2.7667,230.66,230.45,27.72033798]
[1737956530909,2.7667,230.66,230.53,0.03196737]
[1737956531110,5.827e-05,230.58,230.55,27.72033798]
[1737956531312,49.97824246,230.75,230.55,27.72033798]
[1737956531515,4.3362,230.74,230.64,4.3379]
[1737956531825,49.97824246,230.75,230.55,27.72033798]
[1737956532322,0.02906728,230.67,230.66,4.3375]
[1737956532726,49.97824246,230.75,230.69,4.3371]
[1737956532924,0.02885753,230.69,230.64,0.0282031]
[1737956533123,48.61644246,230.75,230.6,27.72033798]
[1737956533321,47.24914246,230.75,230.65,27.72033798]
[1737956533516,47.24914246,230.75,230.66,1.3574]
[1737956534118,47.24914246,230.75,230.7,27.72033798]
[1737956534422,26.04900082,230.75,230.74,4.3362]
[1737956534723,117.91704367,230.78,230.74,32.05653798]
[1737956535918,70.7489693,230.76,230.74,32.05653798]
[1737956536119,63.0154693,230.76,230.74,32.05653798]
[1737956536328,55.1998693,230.76,230.74,32.05653798]
[1737956536721,55.1998693,230.76,230.74,27.72033798]
[1737956536924,55.1998693,230.76,230.73,0.02775158]
[1737956537923,4.336,230.75,230.73,0.02775158]
[1737956538622,55.1998693,230.76,230.73,0.02775158]
[1737956540629,55.1998693,230.76,230.74,4.3361]
[1737956541229,48.5123693,230.76,230.74,4.3361]
[1737956541426,7.017e-05,230.77,230.76,4.3358]
[1737956541623,88.24481384,230.78,230.77,27.72033798]
[1737956541828,171.12552548,230.84,230.77,27.72033798]
[1737956542230,171.12552548,230.84,230.78,4.3354]
[1737956542827,108.90372284,230.8,230.78,85.4954]
[1737956543529,77.78612284,230.8,230.78,85.4954]
[1737956543733,41.4464828,230.8,230.78,85.4954]
[1737956544230,36.38565354,230.8,230.78,85.4954]
[1737956544532,1.35e-05,230.8,230.78,85.4954]
[1737956544733,171.12552548,230.84,230.83,4.3345]
[1737956544926,119.22036518,230.84,230.83,32.05483798]
[1737956545231,106.00308343,230.84,230.83,32.05483798]
[1737956545431,55.59544339,230.84,230.83,32.05483798]
[1737956545637,48.98674339,230.84,230.83,32.05483798]
[1737956545831,27.22854339,230.84,230.83,32.05483798]
[1737956546030,13.93874339,230.84,230.83,32.05483798]
[1737956546231,7.42674339,230.84,230.83,27.72033798]
[1737956546431,7.42674339,230.84,230.81,0.03101445]
[1737956546837,4.3346,230.83,230.81,0.03101445]
[1737956547533,7.42674339,230.84,230.81,0.03101445]
[1737956548638,7.42674339,230.84,230.82,4.3347]
[1737956549036,7.42674339,230.84,230.82,32.05503798]
[1737956549237,176.87556551,230.99,230.82,27.72033798]
[1737956549537,176.87556551,230.99,230.81,0.03101445]
[1737956549538,176.87556551,230.99,230.87,27.72033798]
[1737956549939,176.87556551,230.99,230.93,4.3326]
[1737956550132,176.87556551,230.99,230.92,27.72033798]
[1737956550531,0.02927321,230.98,230.93,0.029527]
[1737956551640,0.02927321,230.98,230.94,3.56]
[1737956551836,0.02927321,230.98,230.96,27.72033798]
[1737956553042,176.87556551,230.99,230.96,27.72033798]
[1737956553236,27.27447383,230.99,230.96,27.72033798]
[1737956553441,224.46504817,231.0,230.98,4.3317]
[1737956553743,217.58614817,231.0,230.98,4.3317]
[1737956555744,217.58614817,231.0,230.93,0.029527]
[1737956557246,4.3324,230.95,230.93,0.029527]
[1737956558646,0.03022839,230.96,230.94,27.72033798]
[1737956559743,0.03022839,230.96,230.94,32.05273798]
[1737956560347,217.58614817,231.0,230.94,27.72033798]
[1737956560646,191.0,231.35,230.93,0.029527]
[1737956560647,1.3115,231.15,230.98,27.72033798]
[1737956560842,1.3115,231.15,231.03,27.72033798]
[1737956561037,27.72033798,231.27,231.07,27.72033798]
[1737956561343,3.9984,231.26,231.07,27.72033798]
[1737956561548,0.03110265,231.19,231.15,0.03075489]
[1737956562142,4.3282,231.17,231.15,0.03075489]
[1737956562848,4.35900265,231.19,231.15,0.03075489]
[1737956563342,4.3283,231.17,231.15,0.03075489]
[1737956563646,0.03110265,231.19,231.15,0.03075489]
[1737956563947,4.3283,231.17,231.07,32.05033798]
[1737956564147,0.03110265,231.19,231.07,32.05033798]
[1737956564148,3.9984,231.26,231.07,27.72033798]
[1737956564644,3.9984,231.26,231.05,3.56]
[1737956564645,3.9984,231.26,231.17,27.72033798]
[1737956564944,2.6869,231.26,231.18,4.3278]
[1737956565149,0.02841741,231.24,231.19,0.03092275]
[1737956565345,0.02841741,231.24,231.21,27.72033798]
[1737956565543,0.02841741,231.24,231.22,4.3272]
[1737956565745,1.4147,231.41,231.21,27.72033798]
[1737956565942,4.2473,231.41,231.26,27.72033798]
[1737956566349,4.2473,231.41,231.31,27.72033798]
[1737956566647,4.3239,231.4,231.31,27.72033798]
[1737956566848,4.2473,231.41,231.31,27.72033798]
[1737956567048,0.02903826,231.38,231.33,0.03147011]
[1737956567246,0.02903826,231.38,231.18,3.56]
[1737956567449,4.2473,231.41,231.22,27.72033798]
[1737956568446,4.3247,231.36,231.22,27.72033798]
[1737956568645,0.02977083,231.34,231.29,0.03169222]
[1737956568953,4.3253,231.33,231.29,0.03169222]
[1737956569153,0.02977083,231.34,231.29,0.03169222]
[1737956572159,27.72033798,231.54,231.32,27.72033798]
[1737956572360,2.6925,231.52,231.37,27.72033798]
[1737956572654,4.1139,231.52,231.37,27.72033798]
[1737956573054,151.19958981,231.42,231.37,27.72033798]
[1737956573252,145.11465474,231.42,231.4,4.3237]
[1737956573453,145.14737021,231.42,231.4,4.3237]
[1737956573659,145.14737021,231.42,231.37,27.75004663]
[1737956575964,145.14737021,231.42,231.37,32.07424663]
[1737956576157,145.14737021,231.42,231.37,0.02970865]
[1737956576555,4.324,231.4,231.37,0.02970865]
[1737956576961,4.324,231.4,231.29,80.98]
[1737956576962,4.3252,231.33,231.29,80.98]
[1737956577263,2.8152,231.39,231.17,27.72033798]
[1737956577659,4.3263,231.27,231.17,27.72033798]
[1737956577853,2.8152,231.39,231.17,27.72033798]
[1737956578157,0.02863126,231.24,231.2,4.35638821]
[1737956578357,27.72033798,231.36,231.14,64.66364276]
[1737956578557,0.03179023,231.24,231.2,0.02904455]
[1737956578960,1.3845,231.27,231.17,27.72033798]
[1737956579163,0.02966375,231.24,231.2,4.35618448]
[1737956579359,0.02966375,231.24,231.2,0.02868448]
[1737956580061,0.02966375,231.24,231.22,27.72033798]
[1737956581253,0.02966375,231.24,231.2,0.02868448]
[1737956582164,0.02966375,231.24,231.2,4.35618448]
[1737956582459,0.02966375,231.24,231.2,0.02868448]
[1737956582662,0.02966375,231.24,231.22,32.04753798]
[1737956583066,1.405,231.35,231.22,27.72033798]
[1737956583264,1.405,231.35,231.27,27.72033798]
[1737956584170,0.02733457,231.33,231.29,0.03141021]
[1737956584961,4.3261,231.28,231.24,3.54]
[1737956585166,1.405,231.35,231.24,3.54]
[1737956585360,1.3316,231.27,231.24,3.54]
[1737956585958,5.6579,231.27,231.24,3.54]
[1737956586162,1.3316,231.27,231.12,27.72033798]
[1737956586368,1.3316,231.27,231.11,80.92]
[1737956586566,29.05193798,231.27,231.07,27.72033798]
[1737956587369,0.03238184,231.19,231.15,0.03229255]
[1737956587566,0.03238184,231.19,231.07,27.72033798]
[1737956587765,4.328,231.18,231.07,27.72033798]
[1737956587965,0.03238184,231.19,231.07,27.72033798]
[1737956588166,0.03238184,231.19,231.09,4.3296]
[1737956588365,0.03238184,231.19,231.07,27.72033798]
[1737956588573,27.72033798,231.51,231.18,27.72033798]
[1737956588767,4.3247,231.36,231.31,27.72033798]
[1737956588970,1.3942,231.39,231.31,27.72033798]
[1737956589164,1.3942,231.39,231.26,27.72033798]
[1737956589673,0.03260786,231.35,231.3,0.02995688]
[1737956590469,0.03260786,231.35,231.26,27.72033798]
[1737956590770,4.3258,231.3,231.26,27.72033798]
[1737956590964,4.3258,231.3,231.22,31.30033798]
[1737956591471,1.4085,231.29,231.22,31.30033798]
[1737956591669,4.3265,231.26,231.24,0.02976721]
[1737956591974,1.4152,231.25,231.22,27.72033798]
[1737956592376,1.4152,231.25,231.22,23.38973798]
[1737956593070,1.4152,231.25,231.21,0.02779725]
[1737956593374,1.4152,231.25,231.1,3.56]
[1737956593574,1.4152,231.25,231.1,27.72033798]
[1737956594469,0.02797473,231.2,231.15,0.02748441]
[1737956594866,0.02797473,231.2,231.1,27.72033798]
[1737956595375,4.3281,231.17,231.1,27.72033798]
[1737956595574,0.02797473,231.2,231.1,27.72033798]
[1737956595973,4.3293,231.11,231.1,27.72033798]
[1737956596273,191.0,231.19,231.0,27.72033798]
[1737956596474,4.329,231.13,231.0,27.72033798]
[1737956596777,191.0,231.18,231.0,27.72033798]
[1737956596967,191.0,231.17,231.0,27.72033798]
[1737956597273,191.0,231.16,230.93,27.72033798]
[1737956597469,0.03235322,231.11,231.06,4.851e-05]
[1737956597664,4.33,231.07,231.06,4.851e-05]
[1737956598578,4.33,231.07,230.88,27.72033798]
[1737956598579,4.3334,230.89,230.88,27.72033798]
[1737956598874,191.0,231.06,230.88,27.72033798]
[1737956599074,191.0,231.05,230.88,27.72033798]
[1737956599269,4.3333,230.9,230.88,27.72033798]
[1737956599666,191.0,231.05,230.88,27.72033798]
[1737956599870,0.02851308,230.91,230.88,27.72033798]
[1737956600066,3.56,231.11,230.88,27.72033798]
[1737956600272,3.56,231.11,230.94,27.72033798]
[1737956600472,0.02996486,231.02,230.94,27.72033798]
[1737956600675,0.02996486,231.02,231.0,0.02959535]
[1737956601176,4.36096486,231.02,231.0,0.02959535]
[1737956601372,0.02996486,231.02,231.0,0.02959535]
[1737956602385,4.36096486,231.02,231.0,0.02959535]
[1737956604986,0.02996486,231.02,230.88,27.72033798]
[1737956605182,27.72033798,231.14,230.88,27.72033798]
[1737956605482,191.0,231.13,230.88,27.72033798]
[1737956606083,4.3329,230.92,230.88,27.72033798]
[1737956606278,191.0,231.12,230.88,27.72033798]
[1737956606483,4.3333,230.9,230.88,27.74868638]
[1737956606685,4.3333,230.9,230.88,27.72033798]
[1737956608188,0.03186979,230.91,230.88,27.72033798]
[1737956608587,191.0,231.08,230.88,27.72033798]
[1737956608887,4.3323,230.95,230.93,27.72033798]
[1737956609081,191.0,231.08,230.88,27.72033798]
[1737956609686,4.3333,230.9,230.88,27.72033798]
[1737956610484,4.3334,230.89,230.88,27.72033798]
[1737956610891,4.3336,230.88,230.87,0.03113954]
[1737956611089,0.03182609,230.91,230.87,0.03113954]
[1737956611386,191.0,231.08,230.89,27.72033798]
[1737956611387,4.3309,231.03,230.89,27.72033798]
[1737956611587,4.1612,231.07,230.89,27.72033798]
[1737956611983,4.331,231.02,230.89,27.72033798]
[1737956612180,4.1612,231.07,230.89,27.72033798]
[1737956612585,4.3325,230.94,230.89,27.72033798]
[1737956613086,4.3600374,230.94,230.89,27.75215671]
[1737956613289,0.0275374,230.94,230.89,27.75215671]
[1737956613880,4.3331,230.91,230.89,27.75215671]
[1737956614794,0.0275374,230.94,230.89,0.03181873]
[1737956615091,4.3332,230.9,230.89,0.03181873]
[1737956615286,0.0275374,230.94,230.8,27.72033798]
[1737956615486,4.3345,230.83,230.8,27.72033798]
[1737956616185,4.3349,230.81,230.76,1.3727]
[1737956616387,0.02810295,230.84,230.79,0.02836653]
[1737956616889,0.02810295,230.84,230.76,29.09303798]
[1737956617091,0.02810295,230.84,230.79,0.03247746]
[1737956617283,4.3346,230.83,230.79,0.03247746]
[1737956617492,0.02810295,230.84,230.79,0.03247746]
[1737956617992,4.3351,230.81,230.79,0.03247746]
[1737956618888,0.02810295,230.84,230.79,0.03247746]
[1737956619090,4.3351,230.8,230.79,0.03247746]
[1737956620088,4.3351,230.8,230.79,7.746e-05]
[1737956623786,4.3384,230.63,230.6,27.72033798]
[1737956624094,27.72033798,230.78,230.56,27.72033798]
[1737956624295,191.0,230.77,230.56,27.72033798]
[1737956624789,191.0,230.76,230.56,27.72033798]
[1737956624989,0.03109313,230.69,230.52,27.72033798]
[1737956625295,4.3396,230.57,230.52,27.72033798]
[1737956625601,27.72033798,230.74,230.52,27.72033798]
[1737956625794,191.0,230.73,230.52,27.72033798]
[1737956626193,0.02882338,230.65,230.52,27.72033798]
[1737956626391,4.3397,230.56,230.52,27.72033798]
[1737956626796,191.0,230.73,230.52,27.72033798]
[1737956627096,27.72033798,230.7,230.48,27.72033798]
[1737956627291,0.02897712,230.65,230.48,27.72033798]
[1737956627498,0.02897712,230.65,230.48,32.06133798]
[1737956627697,4.0136,230.69,230.48,27.72033798]
[1737956627893,4.3398,230.55,230.48,27.72033798]
[1737956628196,4.0136,230.69,230.48,27.72033798]
[1737956628393,0.02736408,230.54,230.48,27.72033798]
[1737956628597,4.3397,230.56,230.48,27.72033798]
[1737956628799,0.03076669,230.53,230.48,32.06133798]